[Event "4NCL Div 1 2024-25"]
[Site "England"]
[Date "2025.02.16"]
[Round "6.38"]
[White "Finn, Peter"]
[Black "Pang, Ethan"]
[Result "1-0"]
[Annotator "ChessBase"]
[ECO "D02"]
[WhiteElo "2199"]
[BlackElo "2303"]
[PlyCount "151"]
[EventDate "2024.11.23"]
[EventType "team-tourn"]
[EventCountry "ENG"]
[SourceTitle "playchess.com"]
[Source "ChessBase"]
[SourceQuality "1"]
[TimeControl "40/6000+30:3000+30"]

1. d4 {[%emt 0:10:04]} d5 {[%emt 0:11:33]} 2. Nf3 {[%emt 0:00:11]} Nf6 {[%emt 0:00:19]} 3. g3 {[%emt 0:00:16]} c5 {[%emt 0:00:30]} 4. Bg2 {[%emt 0:00:45]} cxd4 {[%emt 0:00:34]} 5. O-O {[%emt 0:00:18]} e6 {[%emt 0:00:23]} 6. Nxd4 {[%emt 0:00:17]} e5 {[%emt 0:00:53]} 7. Nb3 {[%emt 0:00:10]} Be6 {[%emt 0:00:42]} 8. c4 {[%emt 0:00:31]} Nc6 {[%emt 0:03:09]} 9. cxd5 {[%emt 0:00:18]} Nxd5 {[%emt 0:02:26]} 10. N1d2 {[%emt 0:00:24]} Qc7 {[%emt 0:16:35]} 11. Ne4 {[%emt 0:04:58]} Rd8 {[%emt 0:03:03]} 12. Bd2 {[%emt 0:04:02]} Be7 {[%emt 0:04:31]} 13. Rc1 {[%emt 0:03:57]} O-O {[%emt 0:02:51]} 14. Qc2 {[%emt 0:16:26]} Qb6 {[%emt 0:04:42]} 15. Ng5 {[%emt 0:28:08]} Bxg5 {[%emt 0:01:19]} 16. Bxg5 {[%emt 0:00:07]} f6 {[%emt 0:00:57]} 17. Bxd5 {[%emt 0:11:02]} Bxd5 {[%emt 0:04:49]} 18. Be3 {[%emt 0:00:19]} Qb5 {[%emt 0:06:10]} 19. Rfd1 {[%emt 0:03:52]} Rfe8 {[%emt 0:10:14]} 20. Qc5 {[%emt 0:03:01]} Qxc5 {[%emt 0:03:05]} 21. Nxc5 {[%emt 0:00:19]} Ne7 {[%emt 0:03:19]} 22. Nd3 {[%emt 0:01:59]} b6 {[%emt 0:05:10]} 23. Rc7 {[%emt 0:03:20]} Nc6 {[%emt 0:04:42]} 24. Rc1 {[%emt 0:01:16]} Rd6 {[%emt 0:02:04]} 25. b4 {[%emt 0:02:49]} Red8 {[%emt 0:04:16]} 26. b5 {[%emt 0:00:55]} Na5 {[%emt 0:02:13]} 27. Rxa7 {[%emt 0:00:45]} Nc4 {[%emt 0:01:13]} 28. Nb4 {[%emt 0:03:35]} Be4 {[%emt 0:01:30]} 29. f3 {[%emt 0:00:47]} Nxe3 {[%emt 0:01:31]} 30. fxe4 {[%emt 0:00:06]} f5 {[%emt 0:00:16]} 31. Nd5 {[%emt 0:03:34]} Nxd5 {[%emt 0:01:07]} 32. exd5 {[%emt 0:00:03]} Rxd5 {[%emt 0:00:27]} 33. Rcc7 {[%emt 0:00:23]} Rxb5 {[%emt 0:00:32]} 34. Rxg7+ {[%emt 0:00:09]} Kh8 {[%emt 0:00:13]} 35. Rxh7+ {[%emt 0:00:05]} Kg8 {[%emt 0:00:03]} 36. Rhg7+ {[%emt 0:03:37]} Kh8 {[%emt 0:00:12]} 37. Rgf7 {[%emt 0:00:27]} e4 {[%emt 0:00:25]} 38. Kf2 {[%emt 0:00:36]} Re5 {[%emt 0:00:53]} 39. Rfb7 {[%emt 0:00:59]} b5 {[%emt 0:00:23]} 40. Ra5 {[%emt 0:00:26]} f4 {[%emt 0:01:05]} 41. gxf4 {[%emt 0:52:22]} Rh5 {[%emt 0:50:06]} 42. Raxb5 {[%emt 0:00:56]} Rxh2+ {[%emt 0:00:11]} 43. Ke3 {[%emt 0:00:33]} Re8 {[%emt 0:01:32]} 44. Re5 {[%emt 0:01:04]} Ra8 {[%emt 0:00:13]} 45. Rxe4 {[%emt 0:00:43]} Ra3+ {[%emt 0:10:39]} 46. Rb3 {[%emt 0:00:00]} Rxa2 {[%emt 0:00:00]} 47. Kd3 {[%emt 0:00:00]} Kg7 {[%emt 0:00:00]} 48. Re5 {[%emt 0:00:00]} Kf6 {[%emt 0:00:00]} 49. e3 {[%emt 0:00:00]} Rhd2+ {[%emt 0:00:00]} 50. Ke4 {[%emt 0:00:00]} Rd6 {[%emt 0:00:00]} 51. Rf5+ {[%emt 0:00:00]} Ke6 {[%emt 0:00:00]} 52. Rfb5 {[%emt 0:00:00]} Raa6 {[%emt 0:00:00]} 53. Rh5 {[%emt 0:00:00]} Ra4+ {[%emt 0:00:00]} 54. Kf3 {[%emt 0:00:00]} Kd7 {[%emt 0:00:00]} 55. Rbb5 {[%emt 0:00:00]} Re6 {[%emt 0:00:00]} 56. Rhd5+ {[%emt 0:00:00]} Kc6 {[%emt 0:00:00]} 57. Rbc5+ {[%emt 0:00:00]} Kb6 {[%emt 0:00:00]} 58. Rc3 {[%emt 0:00:00]} Ra1 {[%emt 0:00:00]} 59. Rd2 {[%emt 0:00:00]} Rb1 {[%emt 0:00:00]} 60. Rf2 {[%emt 0:00:00]} Rb5 {[%emt 0:00:00]} 61. e4 {[%emt 0:00:00]} Rh6 {[%emt 0:00:00]} 62. Rc1 {[%emt 0:00:00]} Rh4 {[%emt 0:00:00]} 63. Kg3 {[%emt 0:00:00]} Rh8 {[%emt 0:00:00]} 64. f5 {[%emt 0:00:00]} Rb3+ {[%emt 0:00:00]} 65. Kg4 {[%emt 0:00:00]} Re8 {[%emt 0:00:00]} 66. Re2 {[%emt 0:00:00]} Rg8+ {[%emt 0:10:30]} 67. Kf4 {[%emt 0:00:00]} Rf8 {[%emt 0:00:00]} 68. e5 {[%emt 0:00:00]} Rb4+ {[%emt 0:00:00]} 69. Kg5 {[%emt 0:14:06]} Rg8+ {[%emt 0:00:00]} 70. Kf6 {[%emt 0:00:00]} Rf8+ {[%emt 0:00:00]} 71. Ke6 {[%emt 0:00:00]} Kb7 {[%emt 0:00:00]} 72. f6 {[%emt 0:00:00]} Kb8 {[%emt 0:00:00]} 73. Rcc2 {[%emt 0:00:00]} Rd4 {[%emt 0:00:00]} 74. Ke7 {[%emt 0:00:00]} Rdd8 {[%emt 0:00:00]} 75. f7 {[%emt 0:00:00]} Rh8 {[%emt 0:00:00]} 76. Rc1 {[%emt 0:00:00]} 1-0

[Event "4NCL Div 1 2024-25"]
[Site "England"]
[Date "2025.02.16"]
[Round "6.39"]
[White "Mirzoeva, Elmira"]
[Black "Jarocka, Liwia"]
[Result "1/2-1/2"]
[Annotator "ChessBase"]
[ECO "D27"]
[WhiteElo "2258"]
[BlackElo "2267"]
[PlyCount "71"]
[EventDate "2024.11.23"]
[EventType "team-tourn"]
[EventCountry "ENG"]
[SourceTitle "playchess.com"]
[Source "ChessBase"]
[SourceQuality "1"]
[TimeControl "40/6000+30:3000+30"]

1. d4 {[%emt 0:12:22]} Nf6 {[%emt 0:10:16]} 2. c4 {[%emt 0:01:07]} e6 {[%emt 0:00:08]} 3. Nf3 {[%emt 0:00:20]} d5 {[%emt 0:00:22]} 4. Nc3 {[%emt 0:00:24]} dxc4 {[%emt 0:02:09]} 5. e3 {[%emt 0:01:00]} a6 {[%emt 0:00:25]} 6. Bxc4 {[%emt 0:02:31]} b5 {[%emt 0:00:56]} 7. Be2 {[%emt 0:01:22]} Bb7 {[%emt 0:01:34]} 8. O-O {[%emt 0:03:19]} Nbd7 {[%emt 0:03:08]} 9. a3 {[%emt 0:08:19]} c5 {[%emt 0:11:10]} 10. dxc5 {[%emt 0:00:44]} Bxc5 {[%emt 0:02:39]} 11. b4 {[%emt 0:01:26]} Ba7 {[%emt 0:05:20]} 12. Bb2 {[%emt 0:08:04]} O-O {[%emt 0:01:34]} 13. Qb3 {[%emt 0:10:30]} Bb8 {[%emt 0:10:57]} 14. Rfd1 {[%emt 0:11:57]} Qc7 {[%emt 0:04:45]} 15. Rac1 {[%emt 0:10:46]} Bxf3 {[%emt 0:06:24]} 16. Bxf3 {[%emt 0:00:17]} Qxh2+ {[%emt 0:00:07]} 17. Kf1 {[%emt 0:00:01]} Ra7 {[%emt 0:01:09]} 18. Ke2 {[%emt 0:02:14]} Qh4 {[%emt 0:10:44]} 19. Rh1 {[%emt 0:09:58]} Qg5 {[%emt 0:09:03]} 20. Ne4 {[%emt 0:01:04]} Qg6 {[%emt 0:03:28]} 21. Nxf6+ {[%emt 0:12:35]} Nxf6 {[%emt 0:00:23]} 22. Rc6 {[%emt 0:01:34]} Rd8 {[%emt 0:02:50]} 23. Rhc1 {[%emt 0:00:15]} Rad7 {[%emt 0:01:29]} 24. Rc8 {[%emt 0:01:23]} h6 {[%emt 0:03:50]} 25. Rxd8+ {[%emt 0:02:21]} Rxd8 {[%emt 0:00:01]} 26. Qc2 {[%emt 0:00:07]} Qg5 {[%emt 0:01:31]} 27. Qc5 {[%emt 0:02:54]} e5 {[%emt 0:01:12]} 28. Rd1 {[%emt 0:01:40]} Rxd1 {[%emt 0:04:08]} 29. Kxd1 {[%emt 0:00:01]} Qf5 {[%emt 0:00:08]} 30. Ke2 {[%emt 0:03:30]} Qe6 {[%emt 0:00:56]} 31. Bb7 {[%emt 0:00:19]} Kh7 {[%emt 0:04:21]} 32. Qc8 {[%emt 0:01:01]} Qb3 {[%emt 0:01:56]} 33. Qc3 {[%emt 0:00:29]} Qe6 {[%emt 0:00:31]} 34. Qc8 {[%emt 0:00:21]} Qb3 {[%emt 0:00:04]} 35. Qc3 {[%emt 0:00:56]} Qe6 {[%emt 0:00:02]} 36. Qc8 {[%emt 0:00:43]} 1/2-1/2

[Event "4NCL Div 1 2024-25"]
[Site "England"]
[Date "2025.02.16"]
[Round "6.40"]
[White "Stewart, Ashley"]
[Black "Villiers, Thomas"]
[Result "1-0"]
[Annotator "ChessBase"]
[ECO "A25"]
[WhiteElo "2057"]
[BlackElo "2182"]
[PlyCount "121"]
[EventDate "2024.11.23"]
[EventType "team-tourn"]
[EventCountry "ENG"]
[SourceTitle "playchess.com"]
[Source "ChessBase"]
[SourceQuality "1"]
[TimeControl "40/6000+30:3000+30"]

1. c4 {[%emt 0:15:43]} e5 {[%emt 0:10:14]} 2. g3 {[%emt 0:00:15]} Nc6 {[%emt 0:00:26]} 3. Nc3 {[%emt 0:00:30]} f5 {[%emt 0:00:16]} 4. Bg2 {[%emt 0:01:09]} Nf6 {[%emt 0:00:11]} 5. e3 {[%emt 0:00:47]} e4 {[%emt 0:00:39]} 6. d3 {[%emt 0:05:48]} Bb4 {[%emt 0:00:26]} 7. Nge2 {[%emt 0:02:27]} O-O {[%emt 0:11:59]} 8. O-O {[%emt 0:02:43]} d6 {[%emt 0:04:59]} 9. dxe4 {[%emt 0:05:39]} fxe4 {[%emt 0:03:05]} 10. Nxe4 {[%emt 0:03:47]} Bg4 {[%emt 0:01:12]} 11. a3 {[%emt 0:18:39]} Ba5 {[%emt 0:02:08]} 12. b4 {[%emt 0:06:12]} Nxe4 {[%emt 0:01:21]} 13. Bxe4 {[%emt 0:00:26]} Qf6 {[%emt 0:00:34]} 14. Rb1 {[%emt 0:01:39]} Bb6 {[%emt 0:00:56]} 15. Bb2 {[%emt 0:05:27]} Qh6 {[%emt 0:10:54]} 16. Qd5+ {[%emt 0:02:40]} Be6 {[%emt 0:06:38]} 17. Qxe6+ {[%emt 0:01:52]} Qxe6 {[%emt 0:00:07]} 18. Bd5 {[%emt 0:00:03]} Qxd5 {[%emt 0:00:34]} 19. cxd5 {[%emt 0:00:01]} Ne5 {[%emt 0:00:36]} 20. Bxe5 {[%emt 0:05:34]} dxe5 {[%emt 0:00:08]} 21. Nc3 {[%emt 0:01:37]} Rad8 {[%emt 0:01:00]} 22. Rbd1 {[%emt 0:05:59]} Rf7 {[%emt 0:00:24]} 23. Rd2 {[%emt 0:03:00]} Rfd7 {[%emt 0:00:59]} 24. Rfd1 {[%emt 0:01:18]} Kf7 {[%emt 0:04:08]} 25. Kf1 {[%emt 0:02:28]} Ke7 {[%emt 0:00:17]} 26. Ke2 {[%emt 0:01:29]} a6 {[%emt 0:02:16]} 27. Ne4 {[%emt 0:03:00]} h6 {[%emt 0:00:41]} 28. g4 {[%emt 0:01:53]} a5 {[%emt 0:00:23]} 29. b5 {[%emt 0:03:21]} Rf8 {[%emt 0:00:55]} 30. a4 {[%emt 0:02:18]} g6 {[%emt 0:00:57]} 31. h4 {[%emt 0:04:52]} Rfd8 {[%emt 0:00:54]} 32. Ng3 {[%emt 0:01:08]} Bc5 {[%emt 0:00:17]} 33. h5 {[%emt 0:00:50]} Kf7 {[%emt 0:00:29]} 34. hxg6+ {[%emt 0:01:42]} Kxg6 {[%emt 0:00:09]} 35. e4 {[%emt 0:00:55]} Rh7 {[%emt 0:01:32]} 36. Rh1 {[%emt 0:00:36]} Be7 {[%emt 0:00:16]} 37. Nf5 {[%emt 0:00:32]} Bg5 {[%emt 0:00:03]} 38. Rd3 {[%emt 0:00:27]} Rf8 {[%emt 0:02:00]} 39. d6 {[%emt 0:00:36]} cxd6 {[%emt 0:00:14]} 40. Rxd6+ {[%emt 0:00:18]} Rf6 {[%emt 0:00:13]} 41. Rhd1 {[%emt 0:30:01]} Bf4 {[%emt 0:25:39]} 42. Rxf6+ {[%emt 0:05:23]} Kxf6 {[%emt 0:00:08]} 43. b6 {[%emt 0:02:23]} Kg5 {[%emt 0:00:16]} 44. Kf3 {[%emt 0:03:00]} h5 {[%emt 0:00:28]} 45. gxh5 {[%emt 0:00:52]} Rxh5 {[%emt 0:00:16]} 46. Rd7 {[%emt 0:04:54]} Rh3+ {[%emt 0:00:07]} 47. Ng3 {[%emt 0:01:09]} Bxg3 {[%emt 0:00:10]} 48. fxg3 {[%emt 0:00:34]} Rh1 {[%emt 0:00:08]} 49. Rxb7 {[%emt 0:02:16]} Rb1 {[%emt 0:00:07]} 50. Rb8 {[%emt 0:00:51]} Rb3+ {[%emt 0:00:14]} 51. Ke2 {[%emt 0:01:24]} Kg6 {[%emt 0:00:23]} 52. b7 {[%emt 0:00:39]} Kg7 {[%emt 0:00:06]} 53. Kf2 {[%emt 0:00:21]} Rb2+ {[%emt 0:00:36]} 54. Kf3 {[%emt 0:00:09]} Rb4 {[%emt 0:00:04]} 55. Kg2 {[%emt 0:00:50]} Kh7 {[%emt 0:00:30]} 56. Kh3 {[%emt 0:00:08]} Kg7 {[%emt 0:00:22]} 57. g4 {[%emt 0:00:09]} Kg6 {[%emt 0:03:09]} 58. Rg8+ {[%emt 0:00:15]} Kh6 {[%emt 0:00:02]} 59. b8=Q {[%emt 0:05:02]} Rb7 {[%emt 0:00:03]} 60. Qd6+ {[%emt 0:00:00]} Kh7 {[%emt 0:00:07]} 61. Qg6# {[%emt 0:00:00]} 1-0